Cogmind - Beta 13 @@@ ROGUE MODE // 2024.04.07 @ 04:47:36 Player: f_ Result: Self-destructed Performance ------------- Evolutions (2) 1000 Regions Visited (3) 600 Robots Destroyed (0) 0 Value Destroyed (0) 0 Prototype IDs (0) 0 Alien Tech Used (0) 0 Bonus (470) 470 TOTAL SCORE: 2070 Bonus ------- Pacifist 470 Cogmind --------- Core Integrity 270/550 Matter 139/300 Energy 100/100 System Corruption 0% Temperature Cool (0) Movement Core (50) Location -8/Materials Parts ------- > --- POWER (2) -------- (None) > --- PROPULSION (4) --- (None) > --- UTILITY (3) ------ Hacking Suite > --- WEAPON (2) ------- (None) > --- INVENTORY (5) ---- (None) Peak State ------------ > --- POWER ------------ Improved Ion Engine > --- PROPULSION ------- Improved Hover Unit Improved Hover Unit Improved Hover Unit > --- UTILITY ---------- Improved Sensor Array Improved Terrain Scanner Reflective Plating > --- WEAPON ----------- (None) > --- INVENTORY -------- (None) [Rating: 17] Favorites ----------- Power Improved Ion Engine Engine Improved Ion Engine Propulsion Improved Hover Unit Hover Unit Improved Hover Unit Utility Reflective Plating Device Improved Sensor Array Hackware Hacking Suite Protection Reflective Plating Weapon None Build | -11 -10 -9 -8 ------- Run | Yrd Mat Mat Mat Slots Evolved 4 | . . 2 2 Power 1 | . . . 1 Propulsion 2 | . . 2 . Utility 1 | . . . 1 Weapon . | . . . . Parts Attached 9 | . 2 5 2 Power 1 | . . 1 . Engine 1 | . . 1 . Core . | . . . . Reactor . | . . . . Propulsion 4 | . 2 2 . Treads . | . . . . Leg . | . . . . Wheel . | . . . . Hover 4 | . 2 2 . Flight . | . . . . Utility 4 | . . 2 2 Device 2 | . . 1 1 Storage . | . . . . Processor . | . . . . Hackware 1 | . . . 1 Protection 1 | . . 1 . Artifact . | . . . . Weapon . | . . . . Energy Gun . | . . . . Energy Cannon . | . . . . Ballistic Gun . | . . . . Ballistic Cannon . | . . . . Launcher . | . . . . Special Weapon . | . . . . Impact Weapon . | . . . . Slashing Weapon . | . . . . Piercing Weapon . | . . . . Special Melee Weapon . | . . . . Unidentified Prototypes . | . . . . Parts Lost 6 | . . 1 5 Power 1 | . . . 1 Propulsion 4 | . . 1 3 Utility 1 | . . . 1 Weapon . | . . . . Highest Loss Streak 5 | . . 1 5 To Critical Strikes . | . . . . Average Slot Usage (%) 41 | . 14 55 45 Engine 5 | . . 8 6 Hover 22 | . 14 41 17 Device 6 | . . 2 10 Hackware 2 | . . . 3 Protection 4 | . . 2 7 Naked Turns 24 | . 24 . . Heaviest Build 13 | . . 12 13 Greatest Support 28 | 3 14 28 21 Greatest Overweight (x) 3 | . . . 3 Average Overweight (x) . | . . . . Largest Inventory Capacity 5 | 5 5 5 5 Average Capacity 5 | 5 5 5 5 Most Carried 2 | . 2 2 . Average Carried . | . . . . Final Capacity 5 | 5 5 5 5 Final Carried 2 | . 2 . . Class Distribution -------------------- 100% | Mutant Dominant Class ---------------- Mutant | -10/Materials Mutant | -9/Materials Mutant | -8/Materials Resources | -11 -10 -9 -8 ----------- Run | Yrd Mat Mat Mat Matter Collected 68 | 68 . . . Remotely . | . . . . Salvage Created . | . . . . Parts . | . . . . Haulers Intercepted . | . . . . Recyclers Shooed . | . . . . Parts Field Recycled . | . . . . Retrieved Matter . | . . . . Parts Self-Destructed . | . . . . Prevented . | . . . . Kills | -11 -10 -9 -8 ------- Run | Yrd Mat Mat Mat Combat Hostiles Destroyed . | . . . . Classes Destroyed . | . . . . Best Kill Streak . | . . . . Combat Bots Only . | . . . . Max Kills in Single Turn . | . . . . Gunslinging . | . . . . Exploded . | . . . . Melee . | . . . . Uniques/NPCs Destroyed . | . . . . Combat | -11 -10 -9 -8 -------- Run | Yrd Mat Mat Mat Hostile Shots Fired 102 | . . 39 63 Missed 42 | . . 24 18 Damage Taken 657 | . . 153 504 Core 312 | . . 32 280 Absorbed by Shields . | . . . . Ignored by Resistances 16 | . . . 16 Core Remaining (%) 97 | 100 100 92 . Volleys Fired . | . . . . Largest . | . . . . Hottest . | . . . . Shots Fired . | . . . . Gun . | . . . . Cannon . | . . . . Launcher . | . . . . Special . | . . . . Kinetic . | . . . . Thermal . | . . . . Explosive . | . . . . Electromagnetic . | . . . . Robot Hit Streak . | . . . . Robot Miss Streak . | . . . . Penetration Max . | . . . . Secondary Targets . | . . . . Shots Hit Robots . | . . . . Core Hits 1 | . . . 1 Critical Kills . | . . . . Critical Parts Destroyed . | . . . . Critical Strikes . | . . . . Melee Attacks . | . . . . Impact . | . . . . Slashing . | . . . . Piercing . | . . . . Sneak Attacks . | . . . . Combat Hostiles . | . . . . Follow-up Attacks . | . . . . Damage Inflicted 48 | . . . 48 Guns . | . . . . Cannons . | . . . . Explosions . | . . . . Melee . | . . . . Ramming 48 | . . . 48 Kinetic . | . . . . Thermal . | . . . . Explosive . | . . . . Electromagnetic . | . . . . Impact . | . . . . Slashing . | . . . . Piercing . | . . . . Highest Corruption . | . . . . Average Corruption . | . . . . Corruption Purged . | . . . . Corruption Blocked . | . . . . Overload Shots . | . . . . Overflow Damage . | . . . . Projectiles . | . . . . Explosions . | . . . . Melee . | . . . . Knockbacks . | . . . . Impact . | . . . . Kinetic . | . . . . Secondary . | . . . . Self-Inflicted Damage 22 | . . . 22 Shots . | . . . . Rammed 10 | . . . 10 Targets Rammed 10 | . . . 10 Kicked . | . . . . Crushed . | . . . . Highest Temperature 8 | . . . 8 Average Temperature 8 | . . . 8 Received Heat Transfer 144 | . . 18 126 Siege Activations . | . . . . Robots Corrupted . | . . . . Combat Hostiles . | . . . . Parts Fried . | . . . . Impact Corruptions . | . . . . Robots Melted . | . . . . Combat Hostiles . | . . . . Parts Melted . | . . . . Heat Transferred . | . . . . Parts Sabotaged . | . . . . Parts Stolen . | . . . . Parts Stripped . | . . . . Power Chain Reactions . | . . . . Alert | -11 -10 -9 -8 ------- Run | Yrd Mat Mat Mat Peak Influence 159 | . . 80 159 Initial 29 | . . . 29 Average 47 | . . 34 73 Maximum Alert Level . | . . . . Low Security (%) 100 | 100 100 100 100 Level 1 . | . . . . Level 2 . | . . . . Level 3 . | . . . . Level 4 . | . . . . Level 5 . | . . . . High Security . | . . . . Max Security . | . . . . Squads Dispatched 1 | . . . 1 Investigation 1 | . . . 1 Extermination . | . . . . Reinforcement . | . . . . Assault . | . . . . Garrison . | . . . . Intercept . | . . . . Searches Triggered . | . . . . Construction Impeded . | . . . . Haulers Reinforced . | . . . . Active Scanning Responses . | . . . . Cargo Convoy Interrupts . | . . . . Stealth | -11 -10 -9 -8 --------- Run | Yrd Mat Mat Mat Distress Signals 2 | . . . 2 Communications Jammed . | . . . . Distress Signals . | . . . . Times Spotted 35 | . . 14 21 Peak Tracking Total 14 | . . 14 14 Tactical Retreats 3 | . . 1 2 Traps | -11 -10 -9 -8 ------- Run | Yrd Mat Mat Mat Traps Triggered . | . . . . Indirectly . | . . . . Trap Hack Attempts . | . . . . Triggered . | . . . . Disarmed . | . . . . Reprogrammed . | . . . . Reused . | . . . . Traps Extracted . | . . . . Installed . | . . . . Triggered . | . . . . Machines | -11 -10 -9 -8 ---------- Run | Yrd Mat Mat Mat Machines Disabled . | . . . . Max in Single Turn . | . . . . Machines Repaired . | . . . . Machines Dismantled . | . . . . Machines Sabotaged . | . . . . Overloaded Fab Kills . | . . . . Hacking | -11 -10 -9 -8 --------- Run | Yrd Mat Mat Mat Machines Accessed 3 | . . 1 2 Terminals 3 | . . 1 2 Fabricators . | . . . . Repair Stations . | . . . . Recycling Units . | . . . . Scanalyzers . | . . . . Garrison Access . | . . . . Total Hacks 9 | . . 3 6 Successful 1 | . . 1 . Failed 8 | . . 2 6 Catastrophic 3 | . . 1 2 Database Lockouts . | . . . . Manual 8 | . . 3 5 Terminals 9 | . . 3 6 Fabricators . | . . . . Repair Stations . | . . . . Recycling Units . | . . . . Scanalyzers . | . . . . Garrison Access . | . . . . Terminal Hacks . | . . . . Fabricator Hacks . | . . . . Repair Station Hacks . | . . . . Recycling Unit Hacks . | . . . . Scanalyzer . | . . . . Garrison Access Hacks . | . . . . Unauthorized Hacks 1 | . . 1 . Terminals 1 | . . 1 . Botnet 1 | . . 1 . Fabricators . | . . . . Repair Stations . | . . . . Recycling Units . | . . . . Scanalyzers . | . . . . Garrison Access . | . . . . Data Cores Recovered . | . . . . Used . | . . . . Hacking Detections 3 | . . 1 2 Full Trace Events 1 | . . . 1 Feedback Events . | . . . . Feedback Blocked . | . . . . Robot Schematics Acquired . | . . . . Robots Built . | . . . . Authchips . | . . . . Time . | . . . . Total Robot Build Rating . | . . . . Part Schematics Acquired . | . . . . Parts Built . | . . . . Authchips . | . . . . Time . | . . . . Total Part Build Rating . | . . . . Parts Repaired . | . . . . Time . | . . . . Parts Recycled . | . . . . Recycled Matter . | . . . . Retrieved Matter . | . . . . Retrieved Components . | . . . . Parts Scanalyzed . | . . . . Part Schematics Acquired . | . . . . Parts Damaged . | . . . . Bothacking | -11 -10 -9 -8 ------------ Run | Yrd Mat Mat Mat Used RIF Installer . | . . . . Robots Hacked . | . . . . Non-combat . | . . . . Combat . | . . . . Robot Hacks Applied . | . . . . Relay Couplers Released . | . . . . Fabnet Peak Effective % . | . . . . Robots Rewired . | . . . . Allies Hacked . | . . . . Hacks Repelled . | . . . . Allies | -11 -10 -9 -8 -------- Run | Yrd Mat Mat Mat Total Allies . | . . . . Largest Group . | . . . . Highest-Rated Group . | . . . . Highest-Rated Ally . | . . . . Total Orders . | . . . . Ally Attacks . | . . . . Total Damage . | . . . . Kills . | . . . . Allies Corrupted . | . . . . Allies Melted . | . . . . Intel | -11 -10 -9 -8 ------- Run | Yrd Mat Mat Mat Robot Analysis Total . | . . . . Derelict Logs Recovered . | . . . . Drone Launches . | . . . . Drone Recoveries . | . . . . Exploration | -11 -10 -9 -8 ------------- Run | Yrd Mat Mat Mat Turns Passed 224 | 9 40 57 118 Spaces Moved 347 | 18 67 99 163 Core 93 | 18 46 . 29 Treads . | . . . . Legs . | . . . . Wheels . | . . . . Hover 254 | . 21 99 134 Flight . | . . . . Fastest Speed 48 | 50 50 48 50 Average Speed 54 | 50 51 50 59 Slowest Speed 200 | 50 60 56 200 Overloaded Moves . | . . . . Propulsion Burnouts . | . . . . Robots Hopped . | . . . . Cave-ins Triggered . | . . . . Exploration Rate (%) 16 | 3 23 20 18 Regions Visited 3 Branch Regions . Pre-discovered Areas . | . . . . Known Exits Taken . | . . . . Unknown Exits Taken 3 | 1 1 1 . Scrap Searched . | . . . . Spaces Dug . | . . . . Terrain Destroyed . | . . . . Melee . | . . . . Projectile . | . . . . AOE . | . . . . Terrain Rammed . | . . . . Walls Destroyed . | . . . . Machines Disabled . | . . . . Actions | -11 -10 -9 -8 --------- Run | Yrd Mat Mat Mat Total 375 | 17 70 104 184 Wait 7 | . . . 7 Move 344 | 17 66 98 163 Hop . | . . . . Pick Up 3 | . 2 1 . Fast Attach 6 | . 2 2 2 Attach 3 | . . 3 . Detach . | . . . . Swap . | . . . . Drop 2 | . . . 2 Fire . | . . . . Melee . | . . . . Ram 10 | . . . 10 Kick . | . . . . Crush . | . . . . Escape Stasis . | . . . . Rewire . | . . . . Trap . | . . . . Miscellaneous . | . . . . Route ------- -11/Scrapyard -10/Materials -9/Materials -8/Materials History --------- Turn | Location | Event 5 | -11/Scrapyard | Discovered new exit (range 12) 10 | -11/Scrapyard | Entered Materials 47 | -10/Materials | Discovered new exit (range 3) 50 | -10/Materials | Entered another Materials area 50 | -9/Materials | Evolved 2 slots: Propulsion x2 95 | -9/Materials | Discovered new exit (range 16) 107 | -9/Materials | Entered another Materials area 107 | -8/Materials | Evolved 2 slots: Power x1, Utility x1 225 | -8/Materials | Core integrity fell below 50% 225 | -8/Materials | Self-destructed Last Messages --------------- 00159_ W-25 Informer sends out distress signal. 00162_ K-01 Serf collects debris. 00165_ Imp. Hover Unit destroyed. 00171_ W-25 Informer sends out distress signal. 00175_ Dropped Imp. Terrain Scanner. 00175_ Acquired Hacking Suite. 00183_ Slammed into Y-45 Defender. 00187_ Imp. Hover Unit destroyed. 00198_ Imp. Ion Engine destroyed. 00204_ Imp. Sensor Array destroyed. 00206_ Dropped Reflective Plating. 00217_ Slammed into S-10 Pest. 00217_ Critical hit (Burn: +37). 00218_ Slammed into S-10 Pest. 00219_ C-30 ARC bursts open, deploying its payload. 00219_ H-55 Commando unfolds itself. 00220_ Slammed into S-10 Pest. 00224_ Slammed into Y-45 Defender. 00224_ Penetrated by Slug. Map ----- +----------------------------------------------------+ | ?????????????????????????????????????????????????? | | ?????????????????????????????????????????????????? | | ?????????????????????????????????????????????????? | | ?????????????????????????????????????????????????? | | ?????????????????????????????????????????????????? | | ?????????????????????????????????????????????????? | | ?????????????????????????????????????????????????? | | ?????????????????????????????????????????????????? | | ?????????????????????????????????????????????????? | | ????????????????????????????????????????? ???????? | | ????????????????????????????????????????? ???????? | | ?????????????????????????????????????????/???????? | | ??????????????????????????????##????????? ???????? | | ?????????????????????????????? ?????????=???????? | | ?????????????????????????????? #????????? ???????? | | ?????????????????????????????? #????????? ???????? | | ?????????????????????????????# #????????# #??????? | | ?????????????????????????????# #????????# ??????? | | ???????????????########??##### #????????# #??????? | | ???????????????#!!!!!!#??# # ########?# #??????? | | ???????????????#!!!!!!#??# # # #?# #??????? | | ???????????????# #??# # # """ #?# #??????? | | ???????????????# ##???# # "R" ### #??????? | | ???????????????# #????# # " " + #??????? | | ???????????????# ######g # g H ### #??????? | | ???????????????# sssY@hY Yg/ [ r #?# #??????? | | ???????????????# ######### ########## #??????? | | ???????????????# #???????# ## ## #??????? | | ???????????????#######???????# ## ## #??????? | | ?????????????????????????????# ## """ ## #??????? | | ?????????????????????????????# ## """ ## #??????? | | ?????????????????????????????# ## """ ## #??????? | | ?????????????????##########??# #?? ?# #??????? | | ?????????????????# #### #####+#### ### | | ?????????????????# / | | ?????????????????# ####/#####/######## | | ?????????????????# ## ## =??????????? | | ?????????????????# ## ##[[ ?????????? | | ?????????????????# ! ##""" !##[[ "????????? | | ??????????????? ?# ##""" ##[ ??????? | | ?????????????????# ##""" ######+##+#?????? | | ?????????????????# ## ]#???????????????? | | ??????????????# ######/##### #???????????????? | | ????????# #??#######???????????????? | | ???????????????###### #??????#?????????????????? | | ??????????????????#?# #????????????????????????? | | ????????????????????# #????????????? ??????????? | | ?????????????######?# ##?????#?????????????????? | | ?????????????# #?# #????????????????????????? | | ?????????????# "" #?# #????????????????????????? | +----------------------------------------------------+ Best States ------------- Heat Dissipation 31 Energy Generation 12 Energy Capacity 265 Matter Stores 168 Matter Capacity 300 Sight Range 16 Robot Scan Range 15 Terrain Scan Range 16 Terrain Scan Density 10 Armor Coverage 150 Resistance: TH 10 Evasion (%) 55 Offensive Hacking 10 Item Schematics ----------------- None Robot Schematics ------------------ None Fabricated ------------ Nothing Alien Tech Used ----------------- None Achievements -------------- None Challenges ------------ None Game ------ Seed FlightLayeredArmor Manual? 0 Play Time 00:09:03 Cumulative 163.9 hours Start 2024.04.07 @ 04:41:41 End 2024.04.07 @ 04:47:36 Sessions 1 Manual Loads 0 Difficulty Rogue Special Mode None Game No. 129 Rogue 124 Adventurer 0 Explorer 5 Win Type - Total 4 Types 1/0/1/2/0/0/0/0/0 Lore% 52 Gallery% 61 Achievement% 47 Wizard Run 0 Options --------- Layout 1 ASCII 0 Keyboard 0 Movement Mouse Keybinds 0 Fullscreen 2 Font 24/Tamsyn Map View 50x35 Zoom Use 0% Tactical HUD 1 Map Filters NONE Filters NONE Steam 1 RUN: edaa6202-a6d9-43af-abf0-1c6942c2970a